[Event "*** SCC Grand Prix: Titled Tuesday Blitz"]
[Site "Chess.com"]
[Date "2020.08.25"]
[Round "5"]
[White "dretch"]
[Black "Duhless"]
[Result "0-1"]
[WhiteElo "2765"]
[BlackElo "3006"]
[TimeControl "180+1"]
[EndTime "10:56:56 PDT"]
[Termination "Duhless won on time"]

1. d4 {[%clk 0:03:00.9]} 1... Nf6 {[%clk 0:02:59.5]} 2. c4 {[%clk 0:03:01]} 2...
d6 {[%clk 0:03:00.4]} 3. Nf3 {[%clk 0:03:00]} 3... g6 {[%clk 0:02:58]} 4. Nc3
{[%clk 0:03:00.1]} 4... Bg7 {[%clk 0:02:58.6]} 5. e4 {[%clk 0:03:00.6]} 5... O-O
{[%clk 0:02:58.7]} 6. h3 {[%clk 0:03:01.2]} 6... Nc6 {[%clk 0:02:58.7]} 7. d5
{[%clk 0:03:00.4]} 7... Nb4 {[%clk 0:02:58.7]} 8. Be2 {[%clk 0:02:58]} 8... e6
{[%clk 0:02:58.6]} 9. O-O {[%clk 0:02:57.7]} 9... Re8 {[%clk 0:02:58.6]} 10.
dxe6 {[%clk 0:02:46]} 10... Bxe6 {[%clk 0:02:57.9]} 11. Bg5 {[%clk 0:02:44.3]}
11... h6 {[%clk 0:02:56.3]} 12. Bf4 {[%clk 0:02:38.8]} 12... Bd7 {[%clk
0:02:51.9]} 13. a3 {[%clk 0:02:29.4]} 13... Nxe4 {[%clk 0:02:43.3]} 14. axb4
{[%clk 0:02:08]} 14... Bxc3 {[%clk 0:02:42]} 15. Qc1 {[%clk 0:02:02.7]} 15...
Bxb4 {[%clk 0:02:31.7]} 16. Bxh6 {[%clk 0:02:00.5]} 16... Qf6 {[%clk 0:02:24.6]}
17. Bd3 {[%clk 0:01:54.8]} 17... Bxh3 {[%clk 0:02:11.5]} 18. Bxe4 {[%clk
0:01:01.3]} 18... Rxe4 {[%clk 0:02:09.6]} 19. Ng5 {[%clk 0:01:01.5]} 19... Bxg2
{[%clk 0:01:45.8]} 20. Nxe4 {[%clk 0:01:01.2]} 20... Bxe4 {[%clk 0:01:43]} 21.
Qf4 {[%clk 0:01:01.2]} 21... Qxf4 {[%clk 0:01:33.4]} 22. Bxf4 {[%clk 0:01:00.6]}
22... f6 {[%clk 0:01:30.2]} 23. Be3 {[%clk 0:00:54.3]} 23... a5 {[%clk
0:01:26.5]} 24. Rfd1 {[%clk 0:00:41.9]} 24... Kf7 {[%clk 0:01:23.7]} 25. Rd4
{[%clk 0:00:40.5]} 25... f5 {[%clk 0:01:21.5]} 26. Kh2 {[%clk 0:00:20.2]} 26...
Kf6 {[%clk 0:01:05.8]} 27. Kg3 {[%clk 0:00:13]} 27... g5 {[%clk 0:01:05.7]} 28.
f3 {[%clk 0:00:08.9]} 28... f4+ {[%clk 0:01:03.7]} 29. Kg2 {[%clk 0:00:08.8]}
29... Bc6 {[%clk 0:01:00.7]} 30. Bd2 {[%clk 0:00:07.2]} 30... Bc5 {[%clk
0:01:00.7]} 31. Rd3 {[%clk 0:00:06.9]} 31... Kf5 {[%clk 0:00:58.5]} 32. Rxa5
{[%clk 0:00:06.5]} 32... Rxa5 {[%clk 0:00:57.6]} 33. Bxa5 {[%clk 0:00:07.4]}
33... g4 {[%clk 0:00:58.2]} 34. Bd2 {[%clk 0:00:05.3]} 34... Bxf3+ {[%clk
0:00:57.5]} 35. Rxf3 {[%clk 0:00:04.5]} 35... gxf3+ {[%clk 0:00:57.4]} 36. Kxf3
{[%clk 0:00:05.4]} 36... Be3 {[%clk 0:00:56.6]} 37. Ba5 {[%clk 0:00:03.7]} 37...
c6 {[%clk 0:00:55.2]} 38. b3 {[%clk 0:00:02.8]} 38... Bd4 {[%clk 0:00:49.5]} 39.
Bc7 {[%clk 0:00:01.6]} 39... Be5 {[%clk 0:00:50]} 0-1

[Event "*** SCC Grand Prix: Titled Tuesday Blitz"]
[Site "Chess.com"]
[Date "2020.08.25"]
[Round "5"]
[White "vugarrasulov"]
[Black "Ginger_GM"]
[Result "1-0"]
[WhiteElo "2823"]
[BlackElo "2569"]
[TimeControl "180+1"]
[EndTime "10:56:56 PDT"]
[Termination "vugarrasulov won by resignation"]

1. c4 {[%clk 0:03:00.9]} 1... f5 {[%clk 0:02:59.4]} 2. Nc3 {[%clk 0:03:01.2]}
2... Nf6 {[%clk 0:02:58.5]} 3. g3 {[%clk 0:03:01.7]} 3... d6 {[%clk 0:02:58]} 4.
Bg2 {[%clk 0:03:02]} 4... e5 {[%clk 0:02:58.2]} 5. d3 {[%clk 0:03:00.7]} 5...
Be7 {[%clk 0:02:58.4]} 6. Nf3 {[%clk 0:02:59.9]} 6... O-O {[%clk 0:02:58]} 7.
O-O {[%clk 0:03:00.4]} 7... Qe8 {[%clk 0:02:57.4]} 8. c5 {[%clk 0:02:57]} 8...
c6 {[%clk 0:02:49.2]} 9. cxd6 {[%clk 0:02:49.7]} 9... Bxd6 {[%clk 0:02:49.3]}
10. b3 {[%clk 0:02:46.4]} 10... f4 {[%clk 0:02:40.3]} 11. Bb2 {[%clk 0:02:44.9]}
11... Qh5 {[%clk 0:02:38.4]} 12. Ne4 {[%clk 0:02:35.9]} 12... Nxe4 {[%clk
0:02:22.4]} 13. dxe4 {[%clk 0:02:36.8]} 13... Bc7 {[%clk 0:02:22.9]} 14. Qc2
{[%clk 0:02:36.1]} 14... Nd7 {[%clk 0:02:00.8]} 15. Rad1 {[%clk 0:02:35.1]}
15... fxg3 {[%clk 0:01:48.8]} 16. hxg3 {[%clk 0:02:28.4]} 16... Nf6 {[%clk
0:01:48]} 17. Ba3 {[%clk 0:02:17.6]} 17... Re8 {[%clk 0:01:43.4]} 18. Bd6 {[%clk
0:02:18]} 18... Bb6 {[%clk 0:01:32.5]} 19. Bc5 {[%clk 0:01:53.7]} 19... Ng4
{[%clk 0:01:25.6]} 20. Bxb6 {[%clk 0:01:47.8]} 20... axb6 {[%clk 0:01:26.5]} 21.
Rd6 {[%clk 0:01:48.1]} 21... Be6 {[%clk 0:01:13.8]} 22. Rfd1 {[%clk 0:01:47.7]}
22... b5 {[%clk 0:01:13.2]} 23. a4 {[%clk 0:01:45.1]} 23... b4 {[%clk 0:00:57]}
24. R1d3 {[%clk 0:01:40.7]} 24... Qf7 {[%clk 0:00:43.4]} 25. Qc5 {[%clk
0:01:32.4]} 25... Bxb3 {[%clk 0:00:40.1]} 26. Bh3 {[%clk 0:01:23.6]} 26... Be6
{[%clk 0:00:34.8]} 27. Qxb4 {[%clk 0:01:05.7]} 27... h6 {[%clk 0:00:27]} 28. Bg2
{[%clk 0:01:03.8]} 28... Re7 {[%clk 0:00:17.7]} 29. Rd8+ {[%clk 0:00:59.6]}
29... Rxd8 {[%clk 0:00:17.4]} 30. Rxd8+ {[%clk 0:01:00.5]} 30... Kh7 {[%clk
0:00:18.3]} 31. Qd6 {[%clk 0:00:59.7]} 31... Bc4 {[%clk 0:00:17.5]} 32. Bh3
{[%clk 0:00:50]} 32... Be6 {[%clk 0:00:10.1]} 33. Bxg4 {[%clk 0:00:45.6]} 33...
Bxg4 {[%clk 0:00:10.2]} 34. Nxe5 {[%clk 0:00:46.1]} 34... Qe6 {[%clk 0:00:10.5]}
35. Nxg4 {[%clk 0:00:38.2]} 35... Qxg4 {[%clk 0:00:10.2]} 36. Qxe7 {[%clk
0:00:37.8]} 1-0

[Event "*** SCC Grand Prix: Titled Tuesday Blitz"]
[Site "Chess.com"]
[Date "2020.08.25"]
[Round "5"]
[White "DishonorOnYourCow"]
[Black "Natalya_Buksa"]
[Result "0-1"]
[WhiteElo "2347"]
[BlackElo "2498"]
[TimeControl "180+1"]
[EndTime "10:56:57 PDT"]
[Termination "Natalya_Buksa won by resignation"]

1. d4 {[%clk 0:03:00.9]} 1... d5 {[%clk 0:02:59.7]} 2. c4 {[%clk 0:03:00.4]}
2... e6 {[%clk 0:02:59.9]} 3. Nc3 {[%clk 0:03:00]} 3... Be7 {[%clk 0:02:59.7]}
4. cxd5 {[%clk 0:02:58.4]} 4... exd5 {[%clk 0:02:59.5]} 5. Bf4 {[%clk 0:02:57]}
5... Nf6 {[%clk 0:02:59.8]} 6. e3 {[%clk 0:02:56.5]} 6... Nc6 {[%clk 0:02:52.4]}
7. Bd3 {[%clk 0:02:56.1]} 7... O-O {[%clk 0:02:52]} 8. Nge2 {[%clk 0:02:54.2]}
8... Be6 {[%clk 0:02:52.1]} 9. Qc2 {[%clk 0:02:52.5]} 9... Nb4 {[%clk
0:02:50.8]} 10. Qd2 {[%clk 0:02:49.9]} 10... Nxd3+ {[%clk 0:02:50.9]} 11. Qxd3
{[%clk 0:02:50.8]} 11... b6 {[%clk 0:02:51.1]} 12. O-O {[%clk 0:02:50.2]} 12...
Qd7 {[%clk 0:02:48.7]} 13. h3 {[%clk 0:02:48.3]} 13... c5 {[%clk 0:02:48.8]} 14.
Bh2 {[%clk 0:02:47.5]} 14... Rac8 {[%clk 0:02:45.5]} 15. Rac1 {[%clk 0:02:46.5]}
15... h6 {[%clk 0:02:42.2]} 16. Nf4 {[%clk 0:02:45.5]} 16... Bf5 {[%clk
0:02:41.5]} 17. Qd2 {[%clk 0:02:41.7]} 17... c4 {[%clk 0:02:40.7]} 18. Rfe1
{[%clk 0:02:21.7]} 18... Bd6 {[%clk 0:02:40]} 19. Qe2 {[%clk 0:02:05.7]} 19...
Bxf4 {[%clk 0:02:35.8]} 20. Bxf4 {[%clk 0:02:05]} 20... b5 {[%clk 0:02:36.2]}
21. Be5 {[%clk 0:01:44.3]} 21... Ne4 {[%clk 0:02:27.3]} 22. f3 {[%clk
0:01:25.4]} 22... Nxc3 {[%clk 0:02:24.7]} 23. bxc3 {[%clk 0:01:26.3]} 23... a5
{[%clk 0:02:25]} 24. e4 {[%clk 0:01:25]} 24... Be6 {[%clk 0:02:24.7]} 25. Rb1
{[%clk 0:01:12.5]} 25... Rfe8 {[%clk 0:02:17]} 26. Qb2 {[%clk 0:01:03.1]} 26...
dxe4 {[%clk 0:02:10.8]} 27. fxe4 {[%clk 0:01:01.7]} 27... f6 {[%clk 0:02:08.8]}
28. Bg3 {[%clk 0:00:57.1]} 28... b4 {[%clk 0:02:07.8]} 29. d5 {[%clk 0:00:51.6]}
29... Bf7 {[%clk 0:02:05.6]} 30. cxb4 {[%clk 0:00:50.1]} 30... c3 {[%clk
0:02:02.1]} 31. Qc2 {[%clk 0:00:48.5]} 31... axb4 {[%clk 0:01:59.4]} 32. Rxb4
{[%clk 0:00:48.9]} 32... Qa7+ {[%clk 0:01:32.4]} 33. Bf2 {[%clk 0:00:39.8]}
33... Qa5 {[%clk 0:01:32.2]} 34. Ra4 {[%clk 0:00:34.7]} 34... Qc7 {[%clk
0:01:29.2]} 35. Ra7 {[%clk 0:00:31.9]} 35... Qe5 {[%clk 0:01:27.7]} 36. a4
{[%clk 0:00:25.8]} 36... Bg6 {[%clk 0:01:27.9]} 37. a5 {[%clk 0:00:18.1]} 37...
Bxe4 {[%clk 0:01:28]} 38. Qc1 {[%clk 0:00:16.5]} 38... Qxd5 {[%clk 0:01:22.3]}
39. Qf4 {[%clk 0:00:13.9]} 39... c2 {[%clk 0:01:10.9]} 40. Qg3 {[%clk
0:00:12.2]} 40... Qg5 {[%clk 0:01:10.9]} 41. Qb3+ {[%clk 0:00:11.4]} 41... Kh8
{[%clk 0:01:08.7]} 42. g3 {[%clk 0:00:08.7]} 42... c1=Q {[%clk 0:01:08.5]} 43.
Qf7 {[%clk 0:00:07.7]} 43... Qc3 {[%clk 0:00:58.6]} 44. h4 {[%clk 0:00:05.2]}
44... Qcxg3+ {[%clk 0:00:57.9]} 0-1

[Event "*** SCC Grand Prix: Titled Tuesday Blitz"]
[Site "Chess.com"]
[Date "2020.08.25"]
[Round "5"]
[White "Unkreativ3"]
[Black "Manukyan_Artak"]
[Result "1-0"]
[WhiteElo "2511"]
[BlackElo "2331"]
[TimeControl "180+1"]
[EndTime "10:56:57 PDT"]
[Termination "Unkreativ3 won on time"]

1. d4 {[%clk 0:03:00.1]} 1... Nf6 {[%clk 0:02:59.4]} 2. c4 {[%clk 0:03:00.3]}
2... d6 {[%clk 0:02:59.1]} 3. Nc3 {[%clk 0:03:00.5]} 3... g6 {[%clk 0:02:59.4]}
4. Nf3 {[%clk 0:03:00.9]} 4... Bg7 {[%clk 0:02:59.7]} 5. Bg5 {[%clk 0:03:01.2]}
5... O-O {[%clk 0:02:59.8]} 6. e3 {[%clk 0:03:01.5]} 6... c6 {[%clk 0:02:59.6]}
7. Be2 {[%clk 0:03:01.9]} 7... Bf5 {[%clk 0:02:59]} 8. O-O {[%clk 0:03:02.1]}
8... Ne4 {[%clk 0:02:57.5]} 9. Nxe4 {[%clk 0:03:02]} 9... Bxe4 {[%clk
0:02:58.4]} 10. Nd2 {[%clk 0:03:02.4]} 10... Bf5 {[%clk 0:02:58.1]} 11. b4
{[%clk 0:03:02.2]} 11... a5 {[%clk 0:02:57.3]} 12. a3 {[%clk 0:03:01.4]} 12...
h6 {[%clk 0:02:55.6]} 13. Bh4 {[%clk 0:03:01.2]} 13... g5 {[%clk 0:02:55.7]} 14.
Bg3 {[%clk 0:03:01.5]} 14... e5 {[%clk 0:02:54.6]} 15. dxe5 {[%clk 0:03:01.2]}
15... dxe5 {[%clk 0:02:52.6]} 16. Nb3 {[%clk 0:03:00.1]} 16... axb4 {[%clk
0:02:44.6]} 17. axb4 {[%clk 0:02:59.3]} 17... Rxa1 {[%clk 0:02:43.8]} 18. Qxa1
{[%clk 0:02:59.6]} 18... e4 {[%clk 0:02:42.8]} 19. Qc1 {[%clk 0:02:52.4]} 19...
Na6 {[%clk 0:02:41.6]} 20. Rd1 {[%clk 0:02:49]} 20... Qf6 {[%clk 0:02:32.9]} 21.
b5 {[%clk 0:02:48.5]} 21... cxb5 {[%clk 0:02:31.6]} 22. cxb5 {[%clk 0:02:49.4]}
22... Nb4 {[%clk 0:02:13.9]} 23. Nd4 {[%clk 0:02:38.1]} 23... Nd3 {[%clk
0:02:08.9]} 24. Bxd3 {[%clk 0:02:37]} 24... exd3 {[%clk 0:02:09.8]} 25. Nxf5
{[%clk 0:02:14.4]} 25... Qxf5 {[%clk 0:02:10.7]} 26. Qc4 {[%clk 0:02:14.5]}
26... Rc8 {[%clk 0:02:02.4]} 27. Bc7 {[%clk 0:02:13.4]} 27... b6 {[%clk
0:01:53.2]} 28. f4 {[%clk 0:01:34.3]} 28... gxf4 {[%clk 0:01:44.9]} 29. Qxf4
{[%clk 0:01:31.8]} 29... Qxb5 {[%clk 0:01:31.9]} 30. h3 {[%clk 0:01:24.1]} 30...
Qc5 {[%clk 0:01:07.5]} 31. Bd6 {[%clk 0:01:22]} 31... Qc2 {[%clk 0:00:58.7]} 32.
Qg4 {[%clk 0:01:20.6]} 32... Rc6 {[%clk 0:00:46.9]} 33. Bf4 {[%clk 0:01:09.8]}
33... Rg6 {[%clk 0:00:45.4]} 34. Qf3 {[%clk 0:01:09.6]} 34... Rxg2+ {[%clk
0:00:43.5]} 35. Qxg2 {[%clk 0:01:10.5]} 35... Qxd1+ {[%clk 0:00:43.5]} 36. Kh2
{[%clk 0:01:11.4]} 36... Qe2 {[%clk 0:00:39.7]} 37. e4 {[%clk 0:01:09.4]} 37...
b5 {[%clk 0:00:27.4]} 38. Qxe2 {[%clk 0:00:59.3]} 38... dxe2 {[%clk 0:00:26.9]}
39. Bd2 {[%clk 0:01:00.2]} 1-0

[Event "*** SCC Grand Prix: Titled Tuesday Blitz"]
[Site "Chess.com"]
[Date "2020.08.25"]
[Round "5"]
[White "MattyDPerrine"]
[Black "Rytenko_V"]
[Result "0-1"]
[WhiteElo "2357"]
[BlackElo "2509"]
[TimeControl "180+1"]
[EndTime "10:56:58 PDT"]
[Termination "Rytenko_V won by resignation"]

1. e4 {[%clk 0:03:00.5]} 1... c5 {[%clk 0:02:59.7]} 2. Nf3 {[%clk 0:02:58.1]}
2... d6 {[%clk 0:03:00.1]} 3. Bb5+ {[%clk 0:02:57.4]} 3... Nc6 {[%clk
0:02:59.5]} 4. O-O {[%clk 0:02:49.2]} 4... g5 {[%clk 0:02:58.3]} 5. Nxg5 {[%clk
0:02:42]} 5... Nf6 {[%clk 0:02:58]} 6. Re1 {[%clk 0:02:31.7]} 6... Rg8 {[%clk
0:02:57.4]} 7. Nf3 {[%clk 0:02:22]} 7... Bg4 {[%clk 0:02:49.4]} 8. Nc3 {[%clk
0:02:08]} 8... e5 {[%clk 0:02:36.9]} 9. Nd5 {[%clk 0:01:44.8]} 9... a6 {[%clk
0:02:32.6]} 10. Bxc6+ {[%clk 0:01:35.4]} 10... bxc6 {[%clk 0:02:31.4]} 11. Ne3
{[%clk 0:01:36.3]} 11... Bh3 {[%clk 0:02:16.9]} 12. d3 {[%clk 0:01:20.8]} 12...
Qd7 {[%clk 0:02:12]} 13. Kh1 {[%clk 0:01:12.1]} 13... Ng4 {[%clk 0:02:05.7]} 14.
Re2 {[%clk 0:00:57]} 14... Nxe3 {[%clk 0:01:53.8]} 15. fxe3 {[%clk 0:00:57.9]}
15... Bg4 {[%clk 0:01:34.7]} 16. Qf1 {[%clk 0:00:53.7]} 16... f5 {[%clk
0:01:28.8]} 17. exf5 {[%clk 0:00:50.7]} 17... Qxf5 {[%clk 0:01:29.7]} 18. e4
{[%clk 0:00:42.1]} 18... Qh5 {[%clk 0:01:29.6]} 19. Rf2 {[%clk 0:00:40.8]} 19...
Be7 {[%clk 0:01:28.5]} 20. Be3 {[%clk 0:00:27.4]} 20... Kd7 {[%clk 0:01:20.1]}
21. h3 {[%clk 0:00:19]} 21... Be6 {[%clk 0:01:18.8]} 22. Nh2 {[%clk 0:00:11.8]}
22... Raf8 {[%clk 0:01:11.2]} 23. Qe2 {[%clk 0:00:08.7]} 23... Qg6 {[%clk
0:01:07.8]} 24. Raf1 {[%clk 0:00:07.8]} 24... Rxf2 {[%clk 0:01:06.4]} 25. Rxf2
{[%clk 0:00:06.7]} 25... h5 {[%clk 0:00:56.9]} 26. Rf3 {[%clk 0:00:06.9]} 26...
h4 {[%clk 0:00:52.7]} 27. b3 {[%clk 0:00:06.6]} 27... Qh5 {[%clk 0:00:50.5]} 28.
Rf2 {[%clk 0:00:06.3]} 28... Qg6 {[%clk 0:00:47.6]} 29. c3 {[%clk 0:00:05.3]}
29... Bxh3 {[%clk 0:00:47]} 30. Qf3 {[%clk 0:00:03.6]} 30... Be6 {[%clk
0:00:46.6]} 31. Rf1 {[%clk 0:00:01.8]} 31... h3 {[%clk 0:00:46]} 32. gxh3 {[%clk
0:00:01.5]} 32... Rf8 {[%clk 0:00:44.9]} 33. Qg2 {[%clk 0:00:01.3]} 33... Rxf1+
{[%clk 0:00:44.8]} 34. Nxf1 {[%clk 0:00:01.1]} 34... Qh5 {[%clk 0:00:45.3]} 35.
Qh2 {[%clk 0:00:01.5]} 35... Bxh3 {[%clk 0:00:43.5]} 36. Kg1 {[%clk 0:00:01.8]}
36... Qf3 {[%clk 0:00:41.7]} 37. Qg3 {[%clk 0:00:02.3]} 37... Qxf1+ {[%clk
0:00:41.7]} 0-1

[Event "*** SCC Grand Prix: Titled Tuesday Blitz"]
[Site "Chess.com"]
[Date "2020.08.25"]
[Round "5"]
[White "romulocardoso"]
[Black "fianchettoer"]
[Result "1-0"]
[WhiteElo "2037"]
[BlackElo "2421"]
[TimeControl "180+1"]
[EndTime "10:56:59 PDT"]
[Termination "romulocardoso won by checkmate"]

1. e4 {[%clk 0:03:00.9]} 1... c6 {[%clk 0:02:59.6]} 2. d4 {[%clk 0:03:00.6]}
2... d5 {[%clk 0:03:00.3]} 3. exd5 {[%clk 0:03:01.5]} 3... cxd5 {[%clk
0:03:00.9]} 4. c4 {[%clk 0:03:01.8]} 4... Nf6 {[%clk 0:03:01.5]} 5. Nc3 {[%clk
0:03:01]} 5... e6 {[%clk 0:03:01.9]} 6. Nf3 {[%clk 0:03:01.1]} 6... Bb4 {[%clk
0:03:01.9]} 7. Bd3 {[%clk 0:02:59.8]} 7... dxc4 {[%clk 0:03:01.8]} 8. Bxc4
{[%clk 0:03:00.7]} 8... O-O {[%clk 0:03:02.2]} 9. O-O {[%clk 0:03:00.8]} 9... b6
{[%clk 0:02:55.6]} 10. a3 {[%clk 0:03:00.9]} 10... Bxc3 {[%clk 0:02:49.8]} 11.
bxc3 {[%clk 0:02:59.8]} 11... Qc7 {[%clk 0:02:45.8]} 12. Qd3 {[%clk 0:02:39.8]}
12... Bb7 {[%clk 0:02:44.1]} 13. Re1 {[%clk 0:02:33.3]} 13... Bxf3 {[%clk
0:02:37.2]} 14. Qxf3 {[%clk 0:02:32.3]} 14... Nbd7 {[%clk 0:02:14.8]} 15. Bb3
{[%clk 0:02:27.1]} 15... Rac8 {[%clk 0:02:12.1]} 16. Bb2 {[%clk 0:02:26.4]}
16... b5 {[%clk 0:02:10.5]} 17. Rac1 {[%clk 0:02:19.4]} 17... Nb6 {[%clk
0:02:10.3]} 18. Re5 {[%clk 0:02:16.3]} 18... a6 {[%clk 0:02:10]} 19. Rg5 {[%clk
0:02:14.8]} 19... Kh8 {[%clk 0:02:01.7]} 20. h4 {[%clk 0:02:05.3]} 20... h6
{[%clk 0:01:51.3]} 21. Rg3 {[%clk 0:02:00.9]} 21... Nc4 {[%clk 0:01:50.4]} 22.
Bxc4 {[%clk 0:01:55.6]} 22... Qxc4 {[%clk 0:01:48.1]} 23. Qf4 {[%clk 0:01:41.9]}
23... Qc7 {[%clk 0:01:44.4]} 24. Qf3 {[%clk 0:01:31]} 24... Qc6 {[%clk
0:01:43.7]} 25. Qe3 {[%clk 0:01:25.7]} 25... Qd5 {[%clk 0:01:36]} 26. Re1 {[%clk
0:01:21.4]} 26... Rc4 {[%clk 0:01:35]} 27. Bc1 {[%clk 0:01:19.4]} 27... Rfc8
{[%clk 0:01:32.6]} 28. Rxg7 {[%clk 0:01:19]} 28... Kxg7 {[%clk 0:01:13.6]} 29.
Qxh6+ {[%clk 0:01:18]} 29... Kg8 {[%clk 0:01:14.2]} 30. Qxf6 {[%clk 0:01:18.2]}
30... Qf5 {[%clk 0:01:12.3]} 31. Qh6 {[%clk 0:01:00.8]} 31... Qg6 {[%clk
0:00:48.5]} 32. Qf4 {[%clk 0:00:54.8]} 32... Rxc3 {[%clk 0:00:39.9]} 33. Bb2
{[%clk 0:00:42.8]} 33... R3c4 {[%clk 0:00:28.8]} 34. Re5 {[%clk 0:00:42.1]}
34... Kf8 {[%clk 0:00:26.4]} 35. Rg5 {[%clk 0:00:40.4]} 35... Qb1+ {[%clk
0:00:12.2]} 36. Kh2 {[%clk 0:00:40.5]} 36... Qxb2 {[%clk 0:00:10.6]} 37. Qd6+
{[%clk 0:00:40.6]} 37... Ke8 {[%clk 0:00:08.3]} 38. Rg8# {[%clk 0:00:41.5]} 1-0

[Event "*** SCC Grand Prix: Titled Tuesday Blitz"]
[Site "Chess.com"]
[Date "2020.08.25"]
[Round "5"]
[White "varacalli"]
[Black "davidkalashian"]
[Result "1-0"]
[WhiteElo "2406"]
[BlackElo "2604"]
[TimeControl "180+1"]
[EndTime "10:57:00 PDT"]
[Termination "varacalli won on time"]

1. e4 {[%clk 0:03:00.9]} 1... c6 {[%clk 0:02:58.9]} 2. d4 {[%clk 0:03:00.4]}
2... g6 {[%clk 0:02:58.7]} 3. Nf3 {[%clk 0:02:59.9]} 3... Bg7 {[%clk 0:02:59]}
4. Nc3 {[%clk 0:03:00]} 4... d6 {[%clk 0:02:59]} 5. a4 {[%clk 0:02:58.5]} 5...
Nf6 {[%clk 0:02:59.2]} 6. h3 {[%clk 0:02:58.5]} 6... O-O {[%clk 0:02:58.7]} 7.
Be3 {[%clk 0:02:58.3]} 7... Nbd7 {[%clk 0:02:58.6]} 8. a5 {[%clk 0:02:55.7]}
8... e5 {[%clk 0:02:58.1]} 9. dxe5 {[%clk 0:02:54.5]} 9... dxe5 {[%clk 0:02:59]}
10. Bc4 {[%clk 0:02:54.6]} 10... Qe7 {[%clk 0:02:57.5]} 11. Qb1 {[%clk
0:02:52.6]} 11... Nc5 {[%clk 0:02:55.7]} 12. Nd2 {[%clk 0:02:50.3]} 12... Be6
{[%clk 0:02:42.3]} 13. Qa2 {[%clk 0:02:46.6]} 13... Bxc4 {[%clk 0:02:34.6]} 14.
Qxc4 {[%clk 0:02:45.4]} 14... Ne6 {[%clk 0:02:34]} 15. Nb3 {[%clk 0:02:30.6]}
15... Nh5 {[%clk 0:01:55.6]} 16. O-O {[%clk 0:02:25.8]} 16... Nhf4 {[%clk
0:01:53.1]} 17. Nc5 {[%clk 0:02:22.7]} 17... Qg5 {[%clk 0:01:36.2]} 18. g3
{[%clk 0:02:18.1]} 18... Nxh3+ {[%clk 0:01:35.5]} 19. Kh2 {[%clk 0:02:08.5]}
19... Qh5 {[%clk 0:01:24.9]} 20. Qe2 {[%clk 0:02:07.6]} 20... Qxe2 {[%clk
0:00:57.2]} 21. Nxe2 {[%clk 0:02:08.5]} 21... Nhg5 {[%clk 0:00:55.4]} 22. f4
{[%clk 0:01:43]} 22... exf4 {[%clk 0:00:51.9]} 23. gxf4 {[%clk 0:01:41.6]} 23...
Nxc5 {[%clk 0:00:50]} 24. Bxc5 {[%clk 0:01:39.4]} 24... Nxe4 {[%clk 0:00:48.9]}
25. Bxf8 {[%clk 0:01:39.3]} 25... Kxf8 {[%clk 0:00:46.9]} 26. c3 {[%clk
0:01:36.5]} 26... f5 {[%clk 0:00:44.4]} 27. Rad1 {[%clk 0:01:35.6]} 27... Ke7
{[%clk 0:00:41.5]} 28. Ng3 {[%clk 0:01:27.6]} 28... Nf6 {[%clk 0:00:29.7]} 29.
Rfe1+ {[%clk 0:01:25.9]} 29... Kf7 {[%clk 0:00:29.9]} 30. Rd3 {[%clk 0:01:19.5]}
30... Bh6 {[%clk 0:00:24.4]} 31. Rf3 {[%clk 0:00:51.9]} 31... Rd8 {[%clk
0:00:20.4]} 32. Re2 {[%clk 0:00:52.1]} 32... Rd1 {[%clk 0:00:15.7]} 33. Kg2
{[%clk 0:00:52]} 33... Nd5 {[%clk 0:00:15.2]} 34. Ref2 {[%clk 0:00:43.6]} 1-0

[Event "*** SCC Grand Prix: Titled Tuesday Blitz"]
[Site "Chess.com"]
[Date "2020.08.25"]
[Round "5"]
[White "marcocordeiro2013"]
[Black "Gerodot71"]
[Result "0-1"]
[WhiteElo "2222"]
[BlackElo "2415"]
[TimeControl "180+1"]
[EndTime "10:57:00 PDT"]
[Termination "Gerodot71 won by checkmate"]

1. d4 {[%clk 0:03:00.9]} 1... Nf6 {[%clk 0:02:59.7]} 2. c4 {[%clk 0:03:00]} 2...
e6 {[%clk 0:02:59.5]} 3. Nc3 {[%clk 0:02:59.3]} 3... Bb4 {[%clk 0:02:58.8]} 4.
f3 {[%clk 0:02:55.4]} 4... d5 {[%clk 0:02:57.8]} 5. e3 {[%clk 0:02:52.2]} 5...
O-O {[%clk 0:02:56.4]} 6. Bd3 {[%clk 0:02:50]} 6... a6 {[%clk 0:02:56.2]} 7. a3
{[%clk 0:02:46.3]} 7... Be7 {[%clk 0:02:54.9]} 8. Nge2 {[%clk 0:02:45.5]} 8...
dxc4 {[%clk 0:02:54.5]} 9. Bxc4 {[%clk 0:02:45.1]} 9... b5 {[%clk 0:02:55.4]}
10. Bd3 {[%clk 0:02:44.6]} 10... Bb7 {[%clk 0:02:55.7]} 11. O-O {[%clk
0:02:44.2]} 11... Nbd7 {[%clk 0:02:55.3]} 12. e4 {[%clk 0:02:37.8]} 12... c5
{[%clk 0:02:52.3]} 13. Be3 {[%clk 0:02:36.5]} 13... cxd4 {[%clk 0:02:50.6]} 14.
Nxd4 {[%clk 0:02:36.2]} 14... Ne5 {[%clk 0:02:39.9]} 15. Be2 {[%clk 0:02:29]}
15... Bc5 {[%clk 0:02:31.6]} 16. b4 {[%clk 0:02:22.1]} 16... Bb6 {[%clk
0:02:30]} 17. Rc1 {[%clk 0:02:13.8]} 17... Rc8 {[%clk 0:02:26.4]} 18. Qd2 {[%clk
0:02:09.5]} 18... Nc4 {[%clk 0:02:21.4]} 19. Bxc4 {[%clk 0:02:08.7]} 19... Rxc4
{[%clk 0:02:22.3]} 20. Rfd1 {[%clk 0:02:08]} 20... Qe7 {[%clk 0:02:14.4]} 21.
Nb3 {[%clk 0:01:41]} 21... Bxe3+ {[%clk 0:02:01]} 22. Qxe3 {[%clk 0:01:41.9]}
22... Nd7 {[%clk 0:02:01.5]} 23. Na5 {[%clk 0:01:35.1]} 23... Bc8 {[%clk
0:01:52.7]} 24. Nxc4 {[%clk 0:01:31.7]} 24... bxc4 {[%clk 0:01:43.4]} 25. Qa7
{[%clk 0:01:31.2]} 25... Qg5 {[%clk 0:01:36.8]} 26. Ne2 {[%clk 0:01:15.4]} 26...
Nf6 {[%clk 0:01:20.8]} 27. Rxc4 {[%clk 0:01:08.2]} 27... Qb5 {[%clk 0:01:18.8]}
28. Qc5 {[%clk 0:01:02.4]} 28... Qa4 {[%clk 0:01:17.2]} 29. Rd3 {[%clk
0:00:54.5]} 29... Nd7 {[%clk 0:01:13.6]} 30. Qxc8 {[%clk 0:00:47.4]} 30... Rxc8
{[%clk 0:01:08.8]} 31. Rxc8+ {[%clk 0:00:46.3]} 31... Nf8 {[%clk 0:01:09.7]} 32.
Rdd8 {[%clk 0:00:45.9]} 32... g6 {[%clk 0:01:09.9]} 33. Rxf8+ {[%clk 0:00:43.2]}
33... Kg7 {[%clk 0:01:10.4]} 34. Rfd8 {[%clk 0:00:28]} 34... Qxa3 {[%clk
0:01:09.6]} 35. Rd7 {[%clk 0:00:15.8]} 35... Qxb4 {[%clk 0:01:08.8]} 36. Kf2
{[%clk 0:00:15.5]} 36... Qb6+ {[%clk 0:01:06.2]} 37. Kg3 {[%clk 0:00:14.9]}
37... Qe3 {[%clk 0:01:04.7]} 38. Nf4 {[%clk 0:00:13.8]} 38... e5 {[%clk
0:01:00]} 39. Nd5 {[%clk 0:00:09.2]} 39... Qe1+ {[%clk 0:00:59.5]} 40. Kh3
{[%clk 0:00:08.6]} 40... g5 {[%clk 0:00:56.8]} 41. g3 {[%clk 0:00:05.3]} 41...
h5 {[%clk 0:00:56.8]} 42. Rcc7 {[%clk 0:00:03.5]} 42... Qf1# {[%clk 0:00:56.4]}
0-1